fUSD/lending_fUSD_20240612
["ID","MTS","AMOUNT","RATE_DAILY","PERIOD"]
[329226272,1718189456270,-522.4115773,0.00019178,2]
[329226273,1718189456281,-500.0,0.00019178,2]
[329226274,1718189456293,-500.0,0.00019178,2]
[329226275,1718189456304,-546.41144461,0.00019178,2]
[329226276,1718189456314,-1550.52,0.00019178,2]
[329226277,1718189456326,-827.49,0.00019178,2]
[329226278,1718189456337,-123.41310137,0.00019178,2]
[329226279,1718189456355,-376.58689863,0.00019178,2]
[329226280,1718189456366,-500.0,0.00019178,2]
[329226281,1718189456377,-534.52138468,0.00019178,2]
[329226282,1718189456388,-1739.28504763,0.00019178,2]
[329226283,1718189456403,-44.33495237,0.00019178,2]
[329226284,1718189456414,-560.61193974,0.00019178,2]
[329226285,1718189456426,-657.3,0.00019178,2]
[329226286,1718189456437,-237.65318789,0.00019178,2]
[329226287,1718189456451,-262.34681211,0.00019178,2]
[329226288,1718189456482,-230.74330633,0.00019178,2]
[329226289,1718189456496,-269.25669367,0.00019178,2]
[329226290,1718189456506,-500.0,0.00019178,2]
[329226291,1718189456516,-500.0,0.00019178,2]
[329226292,1718189456527,-502.31854595,0.00019178,2]
[329226293,1718189456562,-20.37282915,0.00019178,2]
[329226294,1718189456574,-511.64,0.00019178,2]
[329226295,1718189456585,-467.98717085,0.00019178,2]
[329226298,1718190061675,150.0,0.0001211,2]
[329226300,1718190084631,537.87812173,0.0001211,2]
[329226301,1718190129322,29312.12187827,0.0001211,2]
[329226302,1718190136950,2554.09591904,9.083e-05,2]
[329226303,1718190156930,2554.09591904,9.083e-05,2]
[329226304,1718190172937,2554.09591904,9.083e-05,2]
[329226305,1718190191156,706.69040759,9.083e-05,2]
[329226306,1718190195306,525.59514237,9.082e-05,2]
[329226307,1718190202025,24669.67614398,9.083e-05,2]
[329226308,1718190202135,289.98015035,9.083e-05,2]
[329226309,1718190202174,958.18763192,8.629e-05,2]
[329226310,1718190206592,363.0831919,9.083e-05,2]
[329226311,1718190207512,19784.12334789,9.083e-05,2]
[329226312,1718190215538,17613.68222635,9.083e-05,2]
[329226313,1718190217879,958.18763192,8.629e-05,2]
[329226314,1718190219799,289.84266563,9.083e-05,2]
[329226315,1718190221160,7716.56411502,9.083e-05,2]
[329226316,1718190225518,19784.12334789,9.083e-05,2]
[329226317,1718190226598,363.0831919,9.083e-05,2]
[329226318,1718190235878,770.40676665,8.629e-05,2]
[329226319,1718190243588,5096.3512691,9.083e-05,2]
[329226320,1718190246615,363.0831919,9.083e-05,2]
[329226321,1718190266609,362.29577875,9.083e-05,2]
[329226322,1718190336351,797.931432,9.083e-05,2]
[329226323,1718190337156,23463.38911052,9.083e-05,2]
[329226324,1718190352679,155.0,9.083e-05,2]
[329226325,1718190353550,47335.35954577,9.083e-05,2]
[329226326,1718190357422,11622.76981747,9.083e-05,2]
[329226327,1718190363895,512.98460544,8.629e-05,2]
[329226328,1718190366346,947.931432,9.083e-05,2]
[329226329,1718190368613,1364.00611956,9.083e-05,2]
[329226330,1718190368782,362.98346764,9.083e-05,2]
[329226331,1718190369960,434.91140799,9.083e-05,2]
[329226332,1718190370021,208.84696956,9.083e-05,2]
[329226333,1718190370624,266.27324862,9.083e-05,2]
[329226334,1718190373176,319.40266171,9.083e-05,2]
[329226335,1718190379899,889.57530373,8.629e-05,2]
[329226336,1718190382011,155.0,9.083e-05,2]
[329226337,1718190382960,450.0,6.812e-05,2]
[329226338,1718190384616,1364.00611956,9.083e-05,2]
[329226339,1718190385532,3896.65341186,9.083e-05,2]
[329226340,1718190385564,4658.92807793,9.083e-05,2]
[329226341,1718190386609,175.97744575,9.083e-05,2]
[329226342,1718190391592,165.09447632,9.083e-05,2]
[329226343,1718190391621,1556.72216548,9.083e-05,2]
[329226344,1718190397968,155.0,9.083e-05,2]
[329226345,1718190400619,1364.00611956,9.083e-05,2]
[329226346,1718190404592,947.931432,9.083e-05,2]
[329226347,1718190407553,976.34028296,9.083e-05,2]
[329226348,1718190407580,5000.0,9.083e-05,2]
[329226349,1718190407609,3413.31121088,9.083e-05,2]
[329226350,1718190418629,714.46315784,9.083e-05,2]
[329226351,1718190419956,155.0,9.083e-05,2]
[329226352,1718190422351,717.22563128,9.083e-05,2]
[329226353,1718190422622,230.70580072,9.083e-05,2]
[329226354,1718190435975,219.04401576,9.083e-05,2]
[329226355,1718190446969,551.53564297,0.0001,2]
[329226356,1718190447131,-1303.00649786,0.00011784,2]
[329226357,1718190447158,-158.42799102,0.00011785,2]
[329226358,1718190447186,-344.13039777,0.00012109,2]
[329226371,1718190632435,-491.40445475,0.00011886,2]
[329226372,1718190632537,-451.22810343,0.00011886,2]
[329226373,1718190632549,-424.4611634,0.00011886,2]
[329226374,1718190632561,-446.827131,0.00011887,2]
[329226375,1718190632573,-97.70360217,0.00012008,2]
[329226376,1718190633238,-394.63441634,0.00012008,2]
[329226377,1718190633249,-47.61558366,0.00012109,2]
[329226378,1718190633348,-2995.08463137,0.00012109,2]
[329226379,1718190633360,-402.49595915,0.00012109,2]
[329226380,1718190633371,-451.46136046,0.00012109,2]
[329226381,1718190633381,-180.69395492,0.00012109,2]
[329226382,1718190633392,-865.2640952,0.00012109,2]
[329226393,1718190638237,-82.8964852,0.00012109,2]
[329226394,1718190638248,-299.82616197,0.00012109,2]
[329226395,1718190638259,-150.0,0.00012109,2]
[329226396,1718190638271,-150.0,0.00012109,2]
[329226397,1718190638281,-148.84276973,0.00012109,2]
[329226398,1718190638450,-1.15723027,0.00012109,2]
[329226399,1718190638461,-150.0,0.00012109,2]
[329226400,1718190638472,-152.13602558,0.00012109,2]
[329226401,1718190638486,-40.88151321,0.00012109,2]
[329226402,1718190638497,-10979.27805314,0.000124,2]
[329226403,1718190638507,-165.6,0.00013751,2]
[329226404,1718190638518,-169.7,0.00013975,2]
[329226405,1718190638529,-1303.00649786,0.00015204,2]
[329226406,1718190638540,-632.98,0.00015205,2]
[329226407,1718190638551,-1289.05858059,0.00017052,2]
[329226408,1718190638562,-1917.9,0.00017052,2]
[329226409,1718190638575,-1498.39900082,0.0001706,2]
[329226410,1718190638587,-307.12488168,0.0001706,2]
[329226411,1718190638601,-158.36805551,0.0001706,2]
[329226412,1718190638613,-263.84998264,0.0001706,2]
[329226413,1718190638625,-155.0,0.0001706,2]
[329226414,1718190638636,-490.2568696,0.0001706,2]
[329226415,1718190638648,-400.0,0.0001706,2]
[329226416,1718190638659,-307.45960582,0.0001706,2]
[329226417,1718190638669,-1211.12212295,0.0001706,2]
[329226418,1718190638680,-201.67489333,0.0001706,2]
[329226419,1718190638691,-2194.64407392,0.0001706,2]
[329226420,1718190638702,-1067.75598538,0.0001706,2]
[329226421,1718190638712,-499.99,0.0001706,2]
[329226422,1718190638723,-386.26256298,0.00017061,2]
[329226423,1718190638739,-22951.1,0.00017062,2]
[329226424,1718190638750,-2486.48,0.00017111,2]
[329226425,1718190638761,-200.0,0.00017149,2]
[329226426,1718190638773,-200.0,0.00017177,2]
[329226427,1718190638785,-171.02,0.00017204,2]
[329226428,1718190638798,-1943.82,0.00017211,2]
[329226429,1718190638810,-280.21,0.00017224,2]
[329226430,1718190638822,-250.0,0.00017225,2]
[329226431,1718190638834,-360.0,0.00017245,2]
[329226432,1718190638845,-1867.3,0.00017426,2]
[329226433,1718190638855,-557.42,0.00017468,2]
[329226434,1718190638866,-632.98,0.00017469,2]
[329226435,1718190638877,-991.45,0.00017472,2]
[329226436,1718190638911,-250.0,0.00017504,2]
[329226437,1718190638924,-640.0,0.00017541,2]
[329226438,1718190638940,-152.39,0.00017547,2]
[329226439,1718190638957,-152.39,0.00017597,2]
[329226440,1718190638971,-152.39,0.00017648,2]
[329226441,1718190638985,-181.46353453,0.00017666,2]
[329226442,1718190638996,-206.03170677,0.00017666,2]
[329226443,1718190639007,-688.78661675,0.00017666,2]
[329226444,1718190639018,-205.67039254,0.00017666,2]
[329226445,1718190639031,-295.83967052,0.00017666,2]
[329226446,1718190639044,-345.72385954,0.00017666,2]
[329226447,1718190639056,-217.44360157,0.00017666,2]
[329226448,1718190639066,-155.0,0.00017666,2]
[329226449,1718190639077,-155.0,0.00017666,2]
[329226450,1718190639087,-525.21467051,0.00017666,2]
[329226451,1718190639097,-155.0,0.00017667,2]
[329226452,1718190639109,-362.84611958,0.00017667,2]
[329226453,1718190639120,-7740.03294745,0.00017667,2]
[329226454,1718190639132,-150.0,0.00017685,2]
[329226455,1718190639143,-152.39,0.00017699,2]
[329226456,1718190639154,-152.39,0.0001775,2]
[329226457,1718190639165,-150.0,0.00017773,2]
[329226458,1718190639177,-150.0,0.00017774,2]
[329226459,1718190639187,-152.39,0.00017801,2]
[329226460,1718190639198,-150.0,0.00017831,2]
[329226461,1718190639208,-152.39,0.00017851,2]
[329226462,1718190639220,-150.0,0.00017892,2]
[329226463,1718190639231,-152.39,0.00017902,2]
[329226464,1718190639242,-152.39,0.00017953,2]
[329226465,1718190639253,-150.0,0.00017955,2]
[329226466,1718190639264,-152.39,0.00018004,2]
[329226467,1718190639274,-150.0,0.00018006,2]
[329226468,1718190639285,-177.592,0.00018008,2]
[329226469,1718190639297,-546.0,0.00018008,2]
[329226470,1718190639308,-208.989,0.00018008,2]
[329226471,1718190639319,-167.0,0.00018013,2]
[329226472,1718190639332,-152.39,0.00018055,2]
[329226473,1718190639343,-173.02,0.00018091,2]
[329226474,1718190639354,-152.39,0.00018105,2]
[329226475,1718190639365,-152.39,0.00018156,2]
[329226476,1718190639376,-152.39,0.00018207,2]
[329226477,1718190639387,-152.39,0.00018258,2]
[329226478,1718190639398,-193.21503737,0.00018262,2]
[329226479,1718190639409,-155.0,0.00018262,2]
[329226480,1718190639420,-150.0,0.00018292,2]
[329226481,1718190639431,-152.39,0.00018309,2]
[329226482,1718190639441,-150.0,0.00018333,2]
[329226483,1718190639452,-150.0,0.00018357,2]
[329226484,1718190639463,-150.0,0.00018359,2]
[329226485,1718190639474,-152.39,0.00018359,2]
[329226486,1718190639487,-150.0,0.00018401,2]
[329226488,1718190639498,-152.39,0.0001841,2]
[329226490,1718190639509,-152.39,0.00018461,2]
[329226492,1718190639520,-150.0,0.00018476,2]
[329226494,1718190639531,-168.58,0.00018512,2]
[329226496,1718190639543,-178.44,0.00018547,2]
[329226498,1718190639554,-150.0,0.00018672,2]
[329226500,1718190639566,-150.0,0.00018738,2]
[329226502,1718190639577,-184.279,0.00018742,2]
[329226504,1718190639591,-258.291,0.00018742,2]
[329226506,1718190639603,-199.849,0.00018742,2]
[329226508,1718190639616,-201.796,0.00018742,2]
[329226510,1718190639626,-150.691,0.00018742,2]
[329226512,1718190639638,-150.202,0.00018742,2]
[329226514,1718190639649,-977.0,0.00018742,2]
[329226516,1718190639661,-357.0,0.00018742,2]
[329226518,1718190639674,-616.0,0.00018742,2]
[329226520,1718190639688,-441.0,0.00018742,2]
[329226522,1718190639699,-150.0,0.00018803,2]
[329226524,1718190639710,-150.0,0.00018988,2]
[329226526,1718190639722,-172.47,0.00018999,2]
[329226528,1718190639735,-500.0,0.00019014,2]
[329226531,1718190639751,-500.0,0.00019014,2]
[329226533,1718190639764,-500.0,0.00019014,2]
[329226535,1718190639775,-500.0,0.00019014,2]
[329226537,1718190639786,-500.0,0.00019014,2]
[329226539,1718190639797,-1241.72181845,0.00019078,2]
[329226541,1718190639808,-326.89734476,0.00019078,2]
[329226543,1718190639820,-4974.2664,0.00019078,2]
[329226545,1718190639834,-4110.3917,0.00019078,2]
[329226547,1718190639845,-1000.0,0.00019078,2]
[329226549,1718190639855,-150.0,0.00019101,2]
[329226551,1718190639866,-150.0,0.00019108,2]
[329226553,1718190639878,-204.46,0.00019168,3]
[329226555,1718190639890,-613.42,0.00019168,3]
[329226557,1718190639923,-497.40953962,0.00019174,2]
[329226559,1718190639935,-652.23444481,0.00019176,2]
[329226561,1718190639945,-1559.17326316,0.00019176,2]
[329226563,1718190639957,-7224.09951852,0.00019177,2]
[329226565,1718190639968,-35001.59120704,0.00019178,2]
[329226567,1718190639980,-1694.4755408,0.00019178,2]
[329226569,1718190639993,-500.0,0.00019178,2]
[329226571,1718190640005,-500.0,0.00019178,2]
[329226573,1718190640016,-500.0,0.00019178,2]
[329226575,1718190640027,-500.0,0.00019178,2]
[329226577,1718190640039,-158.18643527,0.00019178,2]
[329226579,1718190640050,-500.0,0.00019178,2]
[329226581,1718190640063,-500.0,0.00019178,2]
[329226583,1718190640075,-500.0,0.00019178,2]
[329226585,1718190640087,-500.0,0.00019178,2]
[329226587,1718190640100,-561.20341261,0.00019178,2]
[329226589,1718190640112,-519.49681547,0.00019178,2]
[329226591,1718190640123,-554.1371117,0.00019178,2]
[329226593,1718190640135,-238.03034625,0.00019178,2]
[329226595,1718190640147,-531.88096473,0.00019178,2]
[329226597,1718190640161,-176.53643373,0.00019178,2]
[329226599,1718190640172,-302.17654766,0.00019178,2]
[329226601,1718190640183,-500.0,0.00019178,2]
[329226603,1718190640194,-563.77676974,0.00019178,2]
[329226605,1718190640205,-500.0,0.00019178,2]
[329226607,1718190640216,-500.0,0.00019178,2]
[329226609,1718190640227,-500.0,0.00019178,2]
[329226611,1718190640238,-500.0,0.00019178,2]
[329226613,1718190640248,-500.0,0.00019178,2]
[329226615,1718190640260,-868.31,0.00019178,2]
[329226617,1718190640271,-503.59062058,0.00019178,2]
[329226619,1718190640284,-500.0,0.00019178,2]
[329226620,1718190640295,-500.0,0.00019178,2]
[329226622,1718190640308,-500.0,0.00019178,2]
[329226625,1718190640319,-500.0,0.00019178,2]
[329226626,1718190640330,-500.0,0.00019178,2]
[329226629,1718190640341,-500.0,0.00019178,2]
[329226630,1718190640352,-500.0,0.00019178,2]
[329226633,1718190640363,-500.0,0.00019178,2]
[329226634,1718190640376,-500.0,0.00019178,2]
[329226636,1718190640387,-500.0,0.00019178,2]
[329226638,1718190640398,-500.0,0.00019178,2]
[329226641,1718190640409,-501.81893696,0.00019178,2]
[329226643,1718190640420,-500.0,0.00019178,2]
[329226646,1718190640431,-500.0,0.00019178,2]
[329226648,1718190640442,-517.08244752,0.00019178,2]
[329226650,1718190640453,-500.0,0.00019178,2]
[329226652,1718190640463,-500.0,0.00019178,2]
[329226654,1718190640475,-500.0,0.00019178,2]
[329226656,1718190640486,-511.89917756,0.00019178,2]
[329226658,1718190640497,-500.0,0.00019178,2]
[329226660,1718190640508,-500.0,0.00019178,2]
[329226662,1718190640520,-608.65157596,0.00019178,2]
[329226664,1718190640530,-374.30400646,0.00019178,2]
[329226666,1718190640541,-151.17722274,0.00019178,2]
[329226668,1718190640551,-280.01799638,0.00019178,2]
[329226670,1718190640563,-500.0,0.00019178,2]
[329226672,1718190640574,-500.0,0.00019178,2]
[329226674,1718190640585,-500.0,0.00019178,2]
[329226676,1718190640596,-500.0,0.00019178,2]
[329226678,1718190640607,-500.0,0.00019178,2]
[329226680,1718190640619,-500.0,0.00019178,2]
[329226682,1718190640630,-200.0,0.00019178,2]
[329226684,1718190640641,-500.0,0.00019178,2]
[329226686,1718190640652,-500.0,0.00019178,2]
[329226688,1718190640663,-520.70378276,0.00019178,2]
[329226690,1718190640674,-500.0,0.00019178,2]
[329226692,1718190640685,-500.0,0.00019178,2]
[329226694,1718190640696,-500.0,0.00019178,2]
[329226696,1718190640707,-500.0,0.00019178,2]
[329226698,1718190640717,-347.68472896,0.00019178,2]
[329226700,1718190640730,-517.77817863,0.00019178,2]
[329226702,1718190640746,-500.0,0.00019178,2]
[329226704,1718190640756,-500.0,0.00019178,2]
[329226706,1718190640767,-606.43,0.00019178,2]
[329226708,1718190640779,-500.0,0.00019178,2]
[329226710,1718190640790,-500.0,0.00019178,2]
[329226712,1718190640802,-500.0,0.00019178,2]
[329226714,1718190640814,-336.67,0.00019178,2]
[329226716,1718190640826,-500.0,0.00019178,2]
[329226718,1718190640838,-500.0,0.00019178,2]
[329226720,1718190640849,-500.0,0.00019178,2]
[329226722,1718190640861,-500.0,0.00019178,2]
[329226724,1718190640872,-500.0,0.00019178,2]
[329226726,1718190640884,-513.5207313,0.00019178,2]
[329226728,1718190640903,-500.0,0.00019178,2]
[329226730,1718190640919,-500.0,0.00019178,2]
[329226732,1718190640933,-500.0,0.00019178,2]
[329226734,1718190640944,-539.65457843,0.00019178,2]
[329226736,1718190640955,-539.34987764,0.00019178,2]
[329226738,1718190640966,-500.0,0.00019178,2]
[329226740,1718190640978,-500.0,0.00019178,2]
[329226742,1718190640988,-508.43520985,0.00019178,2]
[329226744,1718190641000,-500.0,0.00019178,2]
[329226746,1718190641011,-500.0,0.00019178,2]
[329226748,1718190641023,-500.0,0.00019178,2]
[329226750,1718190641034,-500.0,0.00019178,2]
[329226752,1718190641045,-500.0,0.00019178,2]
[329226754,1718190641057,-500.0,0.00019178,2]
[329226756,1718190641067,-500.0,0.00019178,2]
[329226758,1718190641079,-500.0,0.00019178,2]
[329226760,1718190641090,-500.0,0.00019178,2]
[329226762,1718190641100,-500.0,0.00019178,2]
[329226764,1718190641111,-500.0,0.00019178,2]
[329226766,1718190641122,-500.0,0.00019178,2]
[329226768,1718190641132,-500.0,0.00019178,2]
[329226770,1718190641144,-500.0,0.00019178,2]
[329226772,1718190641156,-500.0,0.00019178,2]
[329226774,1718190641167,-500.0,0.00019178,2]
[329226776,1718190641178,-201.92175996,0.00019178,2]
[329226778,1718190641189,-500.0,0.00019178,2]
[329226780,1718190641200,-500.0,0.00019178,2]
[329226782,1718190641211,-642.36325744,0.00019178,2]
[329226784,1718190641222,-500.0,0.00019178,2]
[329226786,1718190641234,-500.0,0.00019178,2]
[329226788,1718190641245,-500.0,0.00019178,2]
[329226790,1718190641255,-500.0,0.00019178,2]
[329226792,1718190641266,-500.0,0.00019178,2]
[329226794,1718190641277,-500.0,0.00019178,2]
[329226796,1718190641288,-500.0,0.00019178,2]
[329226798,1718190641298,-500.0,0.00019178,2]
[329226800,1718190641309,-500.0,0.00019178,2]
[329226802,1718190641320,-500.0,0.00019178,2]
[329226804,1718190641331,-500.0,0.00019178,2]
[329226806,1718190641342,-500.0,0.00019178,2]
[329226808,1718190641352,-500.0,0.00019178,2]
[329226810,1718190641363,-500.0,0.00019178,2]
[329226812,1718190641374,-525.08812868,0.00019178,2]
[329226814,1718190641385,-500.0,0.00019178,2]
[329226816,1718190641395,-500.0,0.00019178,2]
[329226818,1718190641406,-500.0,0.00019178,2]
[329226819,1718190641416,-500.0,0.00019178,2]
[329226820,1718190641427,-529.06378089,0.00019178,2]
[329226821,1718190641437,-500.0,0.00019178,2]
[329226822,1718190641447,-500.0,0.00019178,2]
[329226823,1718190641458,-500.0,0.00019178,2]
[329226824,1718190641468,-500.0,0.00019178,2]
[329226825,1718190641479,-500.0,0.00019178,2]
[329226826,1718190641489,-500.0,0.00019178,2]
[329226827,1718190641499,-500.0,0.00019178,2]
[329226828,1718190641509,-500.0,0.00019178,2]
[329226829,1718190641519,-500.0,0.00019178,2]
[329226830,1718190641531,-200.77969174,0.00019178,2]
[329226831,1718190641541,-500.0,0.00019178,2]
[329226832,1718190641551,-551.46521361,0.00019178,2]
[329226833,1718190641562,-150.0,0.00019178,2]
[329226835,1718190641572,-311.1024342,0.00019178,2]
[329226837,1718190641583,-500.0,0.00019178,2]
[329226839,1718190641593,-500.0,0.00019178,2]
[329226841,1718190641604,-350.53838386,0.00019178,2]
[329226843,1718190641616,-303.28106751,0.00019178,2]
[329226845,1718190641626,-500.0,0.00019178,2]
[329226847,1718190641638,-500.0,0.00019178,2]
[329226849,1718190641650,-518.70574326,0.00019178,2]
[329226851,1718190641661,-500.0,0.00019178,2]
[329226853,1718190641672,-500.0,0.00019178,2]
[329226855,1718190641683,-500.0,0.00019178,2]
[329226857,1718190641694,-500.0,0.00019178,2]
[329226859,1718190641705,-500.0,0.00019178,2]
[329226862,1718190641720,-500.0,0.00019178,2]
[329226864,1718190641732,-500.0,0.00019178,2]
[329226866,1718190641748,-500.0,0.00019178,2]
[329226868,1718190641758,-536.26138648,0.00019178,2]
[329226870,1718190641769,-500.0,0.00019178,2]
[329226872,1718190641782,-500.0,0.00019178,2]
[329226874,1718190641794,-500.0,0.00019178,2]
[329226876,1718190641805,-500.0,0.00019178,2]
[329226878,1718190641816,-258.93577481,0.00019178,2]
[329226880,1718190641828,-570.6707365,0.00019178,2]
[329226882,1718190641839,-500.0,0.00019178,2]
[329226884,1718190641849,-500.0,0.00019178,2]
[329226886,1718190641860,-500.0,0.00019178,2]
[329226888,1718190641871,-500.0,0.00019178,2]
[329226890,1718190641882,-500.0,0.00019178,2]
[329226893,1718190641915,-314.58090368,0.00019178,2]
[329226895,1718190641928,-500.0,0.00019178,2]
[329226896,1718190641938,-500.0,0.00019178,2]
[329226899,1718190641949,-500.0,0.00019178,2]
[329226901,1718190641961,-500.0,0.00019178,2]
[329226903,1718190641973,-500.0,0.00019178,2]
[329226904,1718190641985,-500.0,0.00019178,2]
[329226907,1718190641996,-500.0,0.00019178,2]
[329226908,1718190642006,-500.0,0.00019178,2]
[329226910,1718190642018,-395.2103687,0.00019178,2]
[329226912,1718190642029,-500.0,0.00019178,2]
[329226914,1718190642039,-500.0,0.00019178,2]
[329226917,1718190642051,-546.09707594,0.00019178,2]
[329226919,1718190642062,-235.11008354,0.00019178,2]
[329226921,1718190642073,-545.47788724,0.00019178,2]
[329226923,1718190642085,-500.0,0.00019178,2]
[329226925,1718190642096,-500.0,0.00019178,2]
[329226927,1718190642106,-1034.84,0.00019178,2]
[329226929,1718190642117,-500.0,0.00019178,2]
[329226930,1718190642128,-500.0,0.00019178,2]
[329226933,1718190642138,-500.0,0.00019178,2]
[329226935,1718190642150,-500.0,0.00019178,2]
[329226937,1718190642162,-323.35291192,0.00019178,2]
[329226939,1718190642173,-500.0,0.00019178,2]
[329226941,1718190642185,-500.0,0.00019178,2]
[329226943,1718190642196,-500.0,0.00019178,2]
[329226945,1718190642207,-500.0,0.00019178,2]
[329226947,1718190642218,-500.0,0.00019178,2]
[329226949,1718190642228,-500.0,0.00019178,2]
[329226951,1718190642240,-500.0,0.00019178,2]
[329226953,1718190642251,-500.0,0.00019178,2]
[329226955,1718190642264,-500.0,0.00019178,2]
[329226957,1718190642276,-500.0,0.00019178,2]
[329226959,1718190642288,-500.0,0.00019178,2]
[329226961,1718190642298,-463.11995779,0.00019178,2]
[329226963,1718190642310,-500.0,0.00019178,2]
[329226965,1718190642321,-500.0,0.00019178,2]
[329226967,1718190642331,-500.0,0.00019178,2]
[329226969,1718190642344,-500.0,0.00019178,2]
[329226971,1718190642355,-500.0,0.00019178,2]
[329226973,1718190642367,-500.0,0.00019178,2]
[329226975,1718190642379,-500.0,0.00019178,2]
[329226977,1718190642390,-500.0,0.00019178,2]
[329226979,1718190642400,-500.0,0.00019178,2]
[329226981,1718190642412,-333.67487673,0.00019178,2]
[329226983,1718190642423,-500.0,0.00019178,2]
[329226985,1718190642434,-720.37,0.00019178,2]
[329226987,1718190642445,-500.0,0.00019178,2]
[329226989,1718190642457,-500.0,0.00019178,2]
[329226991,1718190642467,-500.0,0.00019178,2]
[329226993,1718190642479,-500.0,0.00019178,2]
[329226995,1718190642489,-500.0,0.00019178,2]
[329226997,1718190642501,-500.0,0.00019178,2]
[329226999,1718190642512,-500.0,0.00019178,2]
[329227001,1718190642523,-379.64727992,0.00019178,2]
[329227003,1718190642534,-500.0,0.00019178,2]
[329227005,1718190642544,-500.0,0.00019178,2]
[329227007,1718190642557,-256.86249872,0.00019178,2]
[329227009,1718190642568,-500.0,0.00019178,2]
[329227011,1718190642580,-486.89650489,0.00019178,2]
[329227013,1718190642592,-500.0,0.00019178,2]
[329227015,1718190642604,-500.0,0.00019178,2]
[329227017,1718190642614,-500.0,0.00019178,2]
[329227019,1718190642626,-500.0,0.00019178,2]
[329227021,1718190642637,-500.0,0.00019178,2]
[329227023,1718190642649,-500.0,0.00019178,2]
[329227025,1718190642660,-524.09493124,0.00019178,2]
[329227027,1718190642672,-500.0,0.00019178,2]
[329227029,1718190642682,-500.0,0.00019178,2]
[329227031,1718190642693,-500.0,0.00019178,2]
[329227052,1718190642914,-500.0,0.00019178,2]
[329227054,1718190642929,-500.0,0.00019178,2]
[329227056,1718190642940,-500.0,0.00019178,2]
[329227058,1718190642952,-500.0,0.00019178,2]
[329227060,1718190642963,-500.0,0.00019178,2]
[329227062,1718190642974,-597.81485485,0.00019178,2]
[329227064,1718190642986,-500.0,0.00019178,2]
[329227067,1718190642999,-500.0,0.00019178,2]
[329227068,1718190643010,-500.0,0.00019178,2]
[329227070,1718190643021,-500.0,0.00019178,2]
[329227073,1718190643032,-500.0,0.00019178,2]
[329227075,1718190643044,-500.0,0.00019178,2]
[329227076,1718190643055,-500.0,0.00019178,2]
[329227079,1718190643066,-500.0,0.00019178,2]
[329227080,1718190643077,-500.0,0.00019178,2]
[329227082,1718190643088,-500.0,0.00019178,2]
[329227085,1718190643100,-500.0,0.00019178,2]
[329227087,1718190643113,-500.0,0.00019178,2]
[329227088,1718190643123,-500.0,0.00019178,2]
[329227091,1718190643135,-511.95177862,0.00019178,2]
[329227093,1718190643147,-567.41232457,0.00019178,2]
[329227095,1718190643158,-500.0,0.00019178,2]
[329227096,1718190643169,-500.0,0.00019178,2]
[329227098,1718190643181,-500.0,0.00019178,2]
[329227100,1718190643193,-500.0,0.00019178,2]
[329227103,1718190643206,-500.0,0.00019178,2]
[329227105,1718190643217,-500.0,0.00019178,2]
[329227107,1718190643230,-500.0,0.00019178,2]
[329227109,1718190643242,-500.0,0.00019178,2]
[329227112,1718190643255,-591.74,0.00019178,2]
[329227115,1718190643266,-500.0,0.00019178,2]
[329227118,1718190643277,-500.0,0.00019178,2]